[Event "IX Iberoamericano Championship 2023"]
[Site "Panama City"]
[Date "2023.11.29"]
[Round "5.2"]
[White "Cuenca Jimenez, Jose Fernando"]
[Black "Espinosa Veloz, Ermes"]
[Result "1/2-1/2"]
[ECO "E71"]
[WhiteElo "2505"]
[BlackElo "2478"]
[Annotator "TA"]
[PlyCount "98"]
[EventDate "2023.11.27"]
[EventType "swiss"]
[EventCountry "PAN"]
[SourceTitle "playchess.com"]
[Source "ChessBase"]
[SourceQuality "1"]
[TimeControl "5400+30"]

{[%evp 10,98,35,21,29,39,39,42,33,40,44,37,56,18,39,34,66,17,76,66,62,0,0,-12,0,-20,0,-60,-51,-64,-52,-62,-49,-33,-25,-14,-32,-76,-83,-106,-101,-103,-26,-27,-31,-35,-22,-31,-35,-28,-25,-55,-58,-53,14,15,16,16,11,20,23,24,93,118,106,99,102,116,108,89,118,0,0,0,12,6,8,0,0,0,0,0,0,0,0,0,0,0,0,0,0]} 1. d4 {[%emt 0:00:06]} Nf6 {[%emt 0:01:09]} 2. c4 {[%emt 0:01:09]} g6 {[%emt 0:00:36]} 3. Nc3 {[%emt 0:00:21]} Bg7 {[%emt 0:00:12]} 4. e4 {[%emt 0:00:58]} d6 {[%emt 0:00:07]} 5. h3 {[%emt 0:01:02]} O-O {[%emt 0:00:59]} 6. Be3 {[%emt 0:00:06]} Nc6 {[%emt 0:02:25] E71: King's Indian: 4 e4 d6 5 h3.} 7. Qd2 {[%emt 0:04:24]} e5 {[%emt 0:00:55] [#] aiming for ...exd4.} 8. d5 {[%emt 0:00:35]} Nd4 {[%emt 0:00:15] White is slightly better.} 9. Nge2 {[%emt 0:00:06]} c5 {[%emt 0:03:16]} 10. dxc6 {[%emt 0:00:43]} Nxc6 {[%emt 0:06:20]} 11. Ng3 {[%emt 0:01:49]} Be6 {[%emt 0:00:08]} 12. Bd3 {[%emt 0:01:31] [#]} Nd7 $146 {[%emt 0:00:49]} ({Predecessor:} 12... Nd4 13. Nge2 Nd7 14. Nd5 Bxd5 15. cxd5 f5 16. exf5 Nxe2 17. Bxe2 gxf5 18. f3 f4 {½-½ Druska,J (2478)-Mladek,R (2368) Skalica op-A 2023 (4)}) 13. O-O {[%emt 0:15:58]} (13. Nf5 $14 {should be considered.}) 13... f5 {[%emt 0:04:13]} (13... Nc5 $11) 14. exf5 $16 {[%emt 0:01:31]} gxf5 {[%emt 0:00:06] ...f4 is the strong threat.} 15. f4 {[%emt 0:00:39] White is more active.} (15. Bg5 $14 Qa5 16. Nh5) 15... Qh4 $11 {[%emt 0:08:11]} 16. Nh1 {[%emt 0:37:03]} Nc5 {[%emt 0:06:53]} 17. Be2 {[%emt 0:07:23]} Nd4 $36 {[%emt 0:01:46][%mdl 2048] Black is pushing.} 18. Bxd4 {[%emt 0:03:32]} ({White should try} 18. Rad1 $11) 18... exd4 $15 {[%emt 0:00:07]} 19. Nb5 {[%emt 0:00:01]} Ne4 {[%emt 0:03:33]} 20. Qd3 {[%emt 0:00:41]} Rac8 {[%emt 0:02:42] Repels Nc7} (20... Qd8 $5 {[%cal Ra8c8]} 21. Nf2 d5 22. cxd5 (22. Nxd4 $2 dxc4 $19) 22... Bxd5 $17) 21. Rac1 {[%emt 0:01:31]} Qf6 {[%emt 0:03:54] ...a6 would be deadly.} 22. Ng3 {[%emt 0:02:37]} Bf7 {[%emt 0:23:32]} 23. Bh5 {[%emt 0:14:54]} a6 {[%emt 0:02:27]} 24. Bxf7+ {[%emt 0:00:45]} Rxf7 {[%emt 0:00:05]} (24... Kxf7 25. Nxf5 Qxf5 26. Qxe4 (26. Nxd4 $2 Qc5 $19) 26... Qxe4 27. Nxd6+ Kg8 28. Nxe4 $16) 25. Na3 {[%emt 0:00:39]} Nc5 {[%emt 0:00:52]} (25... Qg6 $17 26. Rf3 Bf6) 26. Qf3 $11 {[%emt 0:00:24]} d3 {[%emt 0:00:02]} 27. b4 {[%emt 0:00:50] [#]} Ne4 {[%emt 0:02:20]} 28. Rcd1 $1 {[%emt 0:00:54] White is weak on the dark squares} Qd4+ {[%emt 0:01:41]} 29. Kh2 $1 {[%emt 0:00:01]} d2 {[%emt 0:00:08]} 30. Nc2 {[%emt 0:02:14]} Qxc4 {[%emt 0:02:23]} 31. Ne3 {[%emt 0:00:01][%csl LRc4,LRf5]} Qe6 {[%emt 0:00:12]} (31... Qxa2 32. Nxe4 fxe4 33. Qxe4 $11) ({Black should play} 31... Qd3 $15 32. Ngxf5 Rcf8) 32. Nexf5 {[%emt 0:00:36]} Rxf5 {[%emt 0:10:26]} 33. Qxe4 {[%emt 0:00:32]} (33. Nxe4 $2 Rxf4 34. Qxf4 Be5 35. Rxd2 (35. Nf6+ $2 Qxf6 {[%mdl 64] Pin} 36. g3 Bxf4 $19) 35... Rf8 $19) 33... Qxe4 {[%emt 0:00:11]} (33... Qxa2 $2 34. Nxf5 Rf8 35. Nxg7 Kxg7 36. Qxb7+ Rf7 37. Qe4 $18) 34. Nxe4 {[%emt 0:00:01]} Rc1 {[%emt 0:00:07][%cal Of5f4] Hoping for ...Rxf4!} 35. g3 {[%emt 0:01:49]} Bb2 {[%emt 0:01:05]} (35... d5 $11 36. Nxd2 Rc2) 36. Kg2 $16 {[%emt 0:00:23]} (36. Nxd2 $2 Rxd1 37. Rxd1 Rd5 $19) 36... Ba3 {[%emt 0:01:53]} 37. Rxd2 {[%emt 0:00:20] And now Rxc1 would win.} ({Much weaker is} 37. Nxd2 $6 Rxd1 38. Rxd1 Rd5 $11) 37... Rxf1 {[%emt 0:00:11]} 38. Kxf1 {[%emt 0:00:00]} Bxb4 {[%emt 0:00:09][%mdl 4096] Endgame KRB-KRN} 39. Rd4 {[%emt 0:01:05]} ({Reject} 39. Nxd6 $6 Rxf4+ 40. gxf4 Bxd2 $11) 39... Bc5 {[%emt 0:00:38]} 40. Nxc5 {[%emt 0:00:37]} (40. Nxd6 $2 {is the wrong capture.} Rf6 41. Rd5 Bxd6 $19) (40. Rd3 $16) 40... dxc5 {[%emt 0:01:37] KR-KR. The position is equal.} 41. Rd8+ {[%emt 0:00:01]} Kg7 {[%emt 0:00:12]} (41... Rf8 $5 {[%cal Rf8d8]} 42. Rd5 c4 $14) 42. Rd7+ {[%emt 0:00:04]} Rf7 {[%emt 0:00:03]} 43. Rxf7+ {[%emt 0:01:30]} Kxf7 $11 {[%emt 0:00:02] KP-KP} 44. Ke2 {[%emt 0:00:07]} Ke6 {[%emt 0:01:05]} 45. Kd3 {[%emt 0:00:50]} b5 {[%emt 0:01:12]} 46. g4 {[%emt 0:00:04]} Kd5 {[%emt 0:01:19]} 47. g5 {[%emt 0:00:53]} c4+ {[%emt 0:00:10]} 48. Ke3 $1 {[%emt 0:00:01]} b4 {[%emt 0:00:57] Threatens to win with ...b3.} 49. f5 {[%emt 0:00:14]} c3 {[%emt 0:11:25] Weighted Error Value: White=0.12 (very precise) /Black=0.19 (very precise)} (49... Ke5 $5 50. f6 $8 Kd6 $11) 1/2-1/2

[Event "IX Iberoamericano Championship 2023"]
[Site "Panama City"]
[Date "2023.11.29"]
[Round "5.3"]
[White "Flores Quillas, Diego Saul Rodri"]
[Black "Miranda Mesa, Elier"]
[Result "1/2-1/2"]
[ECO "B19"]
[WhiteElo "2414"]
[BlackElo "2490"]
[Annotator "TA"]
[PlyCount "98"]
[EventDate "2023.11.27"]
[EventType "swiss"]
[EventCountry "PAN"]
[SourceTitle "playchess.com"]
[Source "ChessBase"]
[SourceQuality "1"]
[TimeControl "5400+30"]

{[%evp 18,98,18,12,22,10,16,29,23,20,33,22,27,34,43,26,44,0,0,0,0,0,12,8,0,0,0,0,0,0,0,0,0,0,0,0,34,34,34,27,27,27,27,27,65,0,0,0,0,0,0,0,0,0,0,0,0,0,0,0,0,0,0,0,0,0,0,0,0,0,0,0,0,0,0,0,0,0,0,0,0,0,0]} 1. e4 {[%emt 0:12:43]} c6 {[%emt 0:00:02]} 2. d4 {[%emt 0:00:27]} d5 {[%emt 0:00:04]} 3. Nc3 {[%emt 0:00:03]} dxe4 {[%emt 0:00:04]} 4. Nxe4 {[%emt 0:00:03]} Bf5 {[%emt 0:00:10]} 5. Ng3 {[%emt 0:00:05]} Bg6 {[%emt 0:00:03]} 6. h4 {[%emt 0:00:04]} h6 {[%emt 0:00:05]} 7. Nf3 {[%emt 0:00:07]} e6 {[%emt 0:00:09]} 8. Ne5 {[%emt 0:00:19]} Bh7 {[%emt 0:00:10]} 9. Bd3 {[%emt 0:00:04]} Bxd3 {[%emt 0:00:23]} 10. Qxd3 {[%emt 0:00:07]} Nd7 {[%emt 0:00:52] B19: Classical Caro-Kann: 4...Bf5 main line.} 11. f4 {[%emt 0:00:06]} Bb4+ {[%emt 0:02:05]} 12. c3 {[%emt 0:00:07]} Be7 {[%emt 0:00:06] White has an edge.} 13. Bd2 {[%emt 0:00:08]} Ngf6 {[%emt 0:12:36]} 14. O-O-O {[%emt 0:00:37]} O-O {[%emt 0:00:52]} 15. Kb1 {[%emt 0:05:11]} c5 {[%emt 0:08:05]} 16. Be3 {[%emt 0:00:57]} Qc7 {[%emt 0:01:39]} 17. Ne4 {[%emt 0:00:52]} Nxe4 {[%emt 0:16:33]} 18. Qxe4 {[%emt 0:00:08] [#]} f5 $146 {[%emt 0:01:24]} ({Predecessor:} 18... Nxe5 19. dxe5 Rfd8 20. h5 b5 21. g4 Rxd1+ 22. Rxd1 Rd8 23. Rxd8+ Qxd8 24. Kc2 Qa5 {½-½ Yu,Y (2736)-Ni,H (2703) Danzhou 6th 2015 (3)}) 19. Qf3 {[%emt 0:01:17]} Nxe5 {[%emt 0:00:45]} 20. dxe5 {[%emt 0:00:18]} Rad8 {[%emt 0:01:34]} 21. h5 {[%emt 0:00:33]} Rxd1+ {[%emt 0:03:01]} 22. Rxd1 {[%emt 0:06:39]} Rd8 {[%emt 0:01:08]} 23. Rxd8+ {[%emt 0:00:34]} Qxd8 $11 {[%emt 0:00:50][%mdl 4096] Endgame KQB-KQB} 24. Kc2 {[%emt 0:00:08] Dodges Qd3+} Qd7 {[%emt 0:02:32]} 25. b3 {[%emt 0:01:15]} Kf7 {[%emt 0:01:05]} 26. Bf2 {[%emt 0:00:40]} Qb5 {[%emt 0:10:32]} 27. c4 {[%emt 0:03:59]} Qd7 {[%emt 0:04:24]} 28. g4 {[%emt 0:02:12]} fxg4 {[%emt 0:04:13]} 29. Qxg4 {[%emt 0:00:14]} Kf8 {[%emt 0:02:44]} 30. Be3 {[%emt 0:01:45]} a6 {[%emt 0:12:25]} 31. Qg6 {[%emt 0:01:11] White is more active.} (31. f5 $1 $14 exf5 32. Qg6) 31... Qc6 $1 {[%emt 0:00:37] The position is equal.} 32. Kd3 {[%emt 0:00:04]} Qh1 {[%emt 0:02:16]} 33. Qxe6 {[%emt 0:01:53]} Qb1+ {[%emt 0:00:38]} 34. Ke2 {[%emt 0:01:24]} Qc2+ {[%emt 0:07:56]} 35. Kf3 {[%emt 0:03:51] [#] aiming for Qc8+.} (35. Bd2 $5 Qe4+ $8 36. Be3 (36. Kf2 $2 Bh4+ 37. Kg1 Qd4+ 38. Kh1 Qxd2 $19) 36... Qc2+ 37. Bd2 Qe4+ 38. Kd1 (38. Kf2 $2 Bh4+ 39. Kg1 Qd4+ 40. Kh1 Qxd2 $19) 38... Qb1+ 39. Bc1 (39. Ke2 Qe4+ $11) 39... Qd3+ 40. Bd2 Qb1+ 41. Ke2 Qe4+ $11) 35... Qd1+ $1 {[%emt 0:00:11]} 36. Kg2 {[%emt 0:01:26]} Qe2+ {[%emt 0:01:19]} 37. Bf2 {[%emt 0:00:12]} Qe4+ {[%emt 0:00:31]} 38. Kg3 {[%emt 0:01:17] Hoping for Qg4.} Bh4+ {[%emt 0:01:52][%mdl 64] [#] Decoy} 39. Kxh4 {[%emt 0:00:25][%cal Rf2c5]} Qxf4+ {[%emt 0:00:08]} 40. Kh3 {[%emt 0:00:03][%cal Rf2c5]} Qxf2 {[%emt 0:02:33] KQ-KQ} 41. Qc8+ {[%emt 0:00:06]} Ke7 {[%emt 0:00:09]} 42. Qxb7+ {[%emt 0:00:07]} Ke8 {[%emt 0:00:30]} 43. Qc6+ {[%emt 0:05:54]} Ke7 {[%emt 0:00:30]} 44. Qd6+ {[%emt 0:04:58]} Ke8 {[%emt 0:00:20]} 45. Qg6+ {[%emt 0:02:46]} Kf8 {[%emt 0:01:08]} 46. Kg4 {[%emt 0:00:14] Qf5+ is the strong threat.} ({Don't do} 46. Qd6+ Ke8 $14) 46... Qg2+ {[%emt 0:00:44]} 47. Kf5 {[%emt 0:00:57]} Qf3+ {[%emt 0:01:10]} 48. Ke6 {[%emt 0:00:03] Qf5+ would be deadly.} Qc6+ {[%emt 0:00:05]} 49. Kf5 {[%emt 0:00:02]} Qf3+ {[%emt 0:00:05] Weighted Error Value: White=0.04 (flawless) /Black=0.02 (flawless)} 1/2-1/2

[Event "IX Iberoamericano Championship 2023"]
[Site "Panama City"]
[Date "2023.11.29"]
[Round "5.4"]
[White "Roselli Mailhe, Bernardo"]
[Black "Hernandez Guerrero, Gilberto"]
[Result "0-1"]
[ECO "E61"]
[WhiteElo "2364"]
[BlackElo "2527"]
[Annotator "TA"]
[PlyCount "124"]
[EventDate "2023.11.27"]
[EventType "swiss"]
[EventCountry "PAN"]
[SourceTitle "playchess.com"]
[Source "ChessBase"]
[SourceQuality "1"]
[TimeControl "5400+30"]

{[%evp 19,124,25,38,23,17,29,10,9,6,10,21,21,21,16,17,7,2,0,29,-14,-14,-5,-6,-25,-15,-36,0,-9,23,-16,0,0,0,-29,0,-11,-8,-31,-45,-35,-14,-111,-85,-196,-193,-170,-101,-91,0,-28,-64,-154,-72,-146,-141,-245,-234,-287,-290,-287,-249,-491,-388,-364,-383,-475,-481,-489,-446,-452,-418,-554,-597,-527,-570,-583,-539,-727,-629,-788,-772,-12829,-10956,-12841,-12842,-12842,-12843,-12843,-12843,-29979,-12845,-29985,-29986,-29986,-12841,-12841,-2770,-12838,0,-12841,-12840,-12843,-12836,-29987,-29984,-12845,-12845]} 1. d4 {[%emt 0:02:15]} Nf6 {[%emt 0:00:32]} 2. c4 {[%emt 0:00:07]} g6 {[%emt 0:00:37]} 3. Nc3 {[%emt 0:00:06]} Bg7 {[%emt 0:00:05]} 4. Nf3 {[%emt 0:01:13]} O-O {[%emt 0:01:39]} 5. Bg5 {[%emt 0:00:06]} d6 {[%emt 0:03:30]} 6. e3 {[%emt 0:00:06]} c6 {[%emt 0:00:56]} 7. Be2 {[%emt 0:00:34]} a6 {[%emt 0:00:55]} 8. h3 {[%emt 0:04:55]} b5 {[%emt 0:01:02]} 9. a3 {[%emt 0:00:31]} Bb7 {[%emt 0:02:27]} 10. O-O {[%emt 0:06:44]} Nbd7 {[%emt 0:00:50]} 11. Rc1 {[%emt 0:11:05] E61: King's Indian: Early deviations for White, including Smyslov System.} bxc4 {[%emt 0:01:59]} 12. Bxc4 {[%emt 0:00:09]} c5 {[%emt 0:00:13]} 13. d5 {[%emt 0:03:42] The position is equal.} Nb6 {[%emt 0:03:00]} 14. Ba2 {[%emt 0:00:41]} a5 {[%emt 0:00:40]} 15. e4 {[%emt 0:07:28]} Ba6 {[%emt 0:00:53]} 16. Re1 {[%emt 0:00:06]} Nfd7 {[%emt 0:00:27] [#]} 17. Qc2 $146 {[%emt 0:05:00]} ({Predecessor:} 17. b3 Ne5 18. Nxe5 Bxe5 19. Qd2 Qd7 20. Bf4 Bxf4 21. Qxf4 f6 22. Qh6 a4 23. Nxa4 Nxa4 24. bxa4 Qxa4 {½-½ Peng,Z (2409)-De Rover,Y (2182) Haarlem op 2007 (5)}) 17... Rb8 {[%emt 0:10:48]} 18. b3 {[%emt 0:09:24]} Rb7 {[%emt 0:00:36]} 19. Rb1 {[%emt 0:03:22]} Ne5 {[%emt 0:06:24]} 20. Nxe5 {[%emt 0:00:56]} Bxe5 {[%emt 0:00:06]} 21. Bh6 {[%emt 0:07:03]} Re8 {[%emt 0:00:21]} 22. Nd1 {[%emt 0:00:38]} Nd7 {[%emt 0:03:37]} (22... Qd7 {feels hotter.} 23. Nc3 Reb8 24. f3 Bd4+) 23. Ne3 {[%emt 0:02:13]} Qb8 {[%emt 0:08:43]} 24. Qd2 {[%emt 0:18:46]} Bh8 {[%emt 0:12:32]} 25. f4 {[%emt 0:08:08]} Nf6 {[%emt 0:10:28]} 26. Qc2 {[%emt 0:01:34]} (26. Qxa5 $2 {too greedy.} Bd3 27. Qd2 Bxb1 28. Bxb1 Rxb3 $19) 26... Nd7 {[%emt 0:03:38]} 27. Kh2 {[%emt 0:02:31]} Qc7 {[%emt 0:03:04]} 28. Kh1 {[%emt 0:02:51]} Reb8 {[%emt 0:00:34][%cal Oa5a4]} 29. e5 {[%emt 0:00:45]} dxe5 {[%emt 0:01:06]} 30. f5 {[%emt 0:00:07]} (30. Ng4 $1 $11 {keeps the balance.}) 30... Nf6 {[%emt 0:03:02]} 31. Red1 {[%emt 0:01:51]} (31. Rbc1 $17) 31... e4 $19 {[%emt 0:03:41] ...Qg3 is the strong threat.} 32. Qf2 {[%emt 0:00:39]} Rd8 {[%emt 0:05:48]} (32... Bd3 $19 {White must now prevent ...Nh5.} 33. Bf4 Qd8) 33. Bf4 $17 {[%emt 0:00:36]} Qc8 {[%emt 0:00:13]} (33... Qd7 $17 {And now ...Nh5 would win.} 34. Rbc1 Nh5 35. Rxc5 Nxf4 36. Qxf4 Qd6 37. Qxd6 exd6 38. Rxa5 Be2) 34. fxg6 {[%emt 0:00:29]} hxg6 {[%emt 0:00:10]} 35. Be5 {[%emt 0:00:23] [#] Black converts the advantage convincingly.} (35. Rbc1 $15) 35... Bg7 {[%emt 0:01:10]} ({Black should play} 35... Bd3 $1 {[%cal Of6d5]} 36. Rbc1 Bg7) 36. Rbc1 {[%emt 0:00:22] [#]} (36. b4 $142 Bd3 37. d6 Bxb1 38. Rxb1 Rxd6 39. Bxd6 exd6 40. b5) 36... Bd3 $1 {[%emt 0:01:23]} 37. d6 {[%emt 0:00:37]} (37. Re1 $17 {keeps fighting.}) 37... Rxd6 $19 {[%emt 0:00:49]} 38. b4 {[%emt 0:00:39]} axb4 {[%emt 0:00:44]} 39. axb4 {[%emt 0:00:05]} Rxb4 {[%emt 0:00:33]} 40. Ng4 $2 {[%emt 0:01:03]} (40. Bxd6 {is a better defense.} exd6 41. Qf4) 40... Rc6 {[%emt 0:01:56]} (40... Nxg4 $2 {gets mated.} 41. Qxf7+ Kh8 42. Qxg7#) 41. Bc3 {[%emt 0:00:17]} Ra4 {[%emt 0:09:49]} (41... Nxg4 $2 {leads to mate.} 42. Qxf7+ Kh8 43. Qxg7#) 42. Ne5 {[%emt 0:00:48] [#]} c4 $1 {[%emt 0:00:00]} 43. Nxc6 {[%emt 0:00:16]} Qxc6 {[%emt 0:00:00]} 44. Bb1 {[%emt 0:00:15]} Qe6 {[%emt 0:00:00]} 45. Qd4 {[%emt 0:00:42]} Nh5 {[%emt 0:00:00]} 46. Qd8+ {[%emt 0:00:10]} Kh7 {[%emt 0:00:00]} 47. Bxg7 {[%emt 0:00:37]} Kxg7 {[%emt 0:00:00]} 48. Bxd3 {[%emt 0:00:20]} exd3 {[%emt 0:00:00]} 49. Qd4+ {[%emt 0:00:09]} Qf6 {[%emt 0:00:00]} 50. Rxd3 {[%emt 0:00:56]} e5 {[%emt 0:00:00][%cal Be7e5,Be5e4,Be4e3][%mdl 32]} 51. Qd7 {[%emt 0:01:04]} cxd3 {[%emt 0:00:00]} 52. Qxa4 {[%emt 0:00:02][%mdl 4096] Endgame KQR-KQN} Ng3+ {[%emt 0:00:00]} 53. Kh2 {[%emt 0:00:14]} Ne2 {[%emt 0:00:00]} 54. Re1 {[%emt 0:01:04] [#]} e4 $1 {[%emt 0:01:05][%mdl 512]} 55. Qd1 {[%emt 0:00:33]} (55. Qb4 Qe5+) 55... Qf4+ {[%emt 0:01:16]} 56. Kh1 {[%emt 0:00:06]} Qf2 {[%emt 0:00:18]} (56... Ng3+ $142 57. Kg1 d2 58. Kh2 e3 59. Qa1+ Kh7 60. Rd1 e2 61. Qb1 Qf2 62. Rxd2 Nf1+ 63. Kh1 Qg3 64. Qxg6+ {[%mdl 64] Decoy} Kxg6 65. Rd6+ Qxd6 66. Kg1 e1=Q 67. g3 Qdxg3+ 68. Kh1 Qh2#) 57. Kh2 {[%emt 0:00:26]} Qg3+ {[%emt 0:00:37]} 58. Kh1 {[%emt 0:00:02]} Qf2 {[%emt 0:01:15]} 59. Kh2 $1 {[%emt 0:00:07]} e3 {[%emt 0:00:39] ( -> ...Qf4+)} 60. Qa1+ {[%emt 0:01:33]} Qf6 {[%emt 0:00:31]} 61. Qd1 {[%emt 0:00:05]} Qe5+ {[%emt 0:01:03]} 62. Kh1 {[%emt 0:00:05]} Ng3+ {[%emt 0:00:11] Weighted Error Value: White=0.93/Black=0.40} 0-1

[Event "IX Iberoamericano Championship 2023"]
[Site "Panama City"]
[Date "2023.11.29"]
[Round "5.5"]
[White "Martins, Bruno Andre Leite"]
[Black "Almeida Quintana, Omar"]
[Result "0-1"]
[ECO "B07"]
[WhiteElo "2323"]
[BlackElo "2509"]
[Annotator "TA"]
[PlyCount "150"]
[EventDate "2023.11.27"]
[EventType "swiss"]
[EventCountry "PAN"]
[SourceTitle "playchess.com"]
[Source "ChessBase"]
[SourceQuality "1"]
[TimeControl "5400+30"]

{[%evp 10,150,37,41,47,61,51,54,57,29,37,31,27,37,29,17,29,28,35,21,22,19,50,0,16,0,-9,-9,0,0,0,0,0,0,0,0,0,0,0,-24,0,-16,-6,-7,-7,-7,-8,-10,-10,-12,-11,-12,-19,-16,-1,-1,-10,-36,-37,-73,-82,-106,-109,-142,-144,-132,-143,-139,-127,-124,-129,-159,-155,-135,0,0,0,0,0,-157,-163,-157,-157,-163,-164,-163,-164,-166,-175,-156,-85,-85,-85,-85,-85,-85,-85,-85,-85,-85,-85,-85,-85,-85,-85,-85,-85,-85,-85,-85,-85,-85,-85,-85,-85,-85,-85,-566,-73,-97,-97,-135,-97,-599,-576,-29974,-29975,-29975,-29976,-29976,-29977,-29977,-29978,-29978,-29979,-29979,-29980,-29980,-29981,-29980,-29981,-29983,-29983]} 1. e4 {[%emt 0:00:45]} d6 {[%emt 0:01:04]} 2. d4 {[%emt 0:00:10]} Nf6 {[%emt 0:00:09]} 3. Nc3 {[%emt 0:00:09]} e5 {[%emt 0:00:49]} 4. dxe5 {[%emt 0:01:55]} dxe5 {[%emt 0:00:07]} 5. Qxd8+ {[%emt 0:00:08]} Kxd8 {[%emt 0:00:06]} 6. Bc4 {[%emt 0:00:12]} Ke8 $1 {[%emt 0:00:09][%mdl 4] is recently more successful than 6...Be6. B07: Pirc Defence: Miscellaneous Systems.} 7. f4 {[%emt 0:00:22]} Nc6 {[%emt 0:06:42]} 8. Nf3 {[%emt 0:01:30]} Bd6 {[%emt 0:00:56] White is slightly better.} 9. Bb5 {[%emt 0:00:10]} Nd7 {[%emt 0:00:12]} 10. g3 {[%emt 0:00:36]} a6 {[%emt 0:01:58]} 11. Bxc6 {[%emt 0:00:07]} bxc6 {[%emt 0:00:04]} 12. Be3 {[%emt 0:01:57]} f6 {[%emt 0:00:21]} 13. O-O-O {[%emt 0:00:12]} a5 {[%emt 0:01:53] [#]} 14. a3 $146 {[%emt 0:00:19]} ({Predecessor:} 14. Rd2 Kf7 15. Rhd1 Re8 16. f5 Rb8 17. b3 Ba3+ 18. Kb1 Nb6 19. Bxb6 cxb6 20. g4 {½-½ Tuncer,T (2352)-Draskovic,L (2464) Ayvalik Plati 2022 (5)}) 14... Kf7 {[%emt 0:01:50]} 15. Rhf1 {[%emt 0:21:08]} Re8 {[%emt 1:21:40]} (15... Ke7 {is interesting.} 16. Rf2 Ba6 17. Nh4 g6) 16. Ne1 {[%emt 0:02:37]} (16. fxe5 Nxe5 17. Nxe5+ Bxe5 $11) (16. f5 $14) 16... exf4 {[%emt 0:00:00]} 17. Bxf4 {[%emt 0:12:59]} Ne5 {[%emt 0:00:00]} 18. Nd3 {[%emt 0:03:16]} Nc4 {[%emt 0:00:00]} 19. Rde1 {[%emt 0:10:23]} Kg8 {[%emt 0:00:00]} 20. a4 {[%emt 0:10:03]} Ba6 {[%emt 0:00:00]} 21. Rf2 {[%emt 0:01:37]} Rad8 {[%emt 0:00:00]} 22. b3 {[%emt 0:06:01]} Ba3+ {[%emt 0:00:00]} 23. Kb1 {[%emt 0:01:22]} Nd6 {[%emt 0:00:00]} 24. Bxd6 {[%emt 0:09:37]} Bxd6 {[%emt 0:00:00]} 25. Rf5 {[%emt 0:05:19] [#]} c5 $1 {[%emt 0:00:00]} 26. Nb5 {[%emt 0:01:38]} (26. Nxc5 Bc8 27. Rh5 (27. Rd5 c6 $17) 27... Be5 28. Rxe5 Rxe5 $17) 26... Bxb5 {[%emt 0:00:00]} 27. axb5 {[%emt 0:00:01]} Rb8 {[%emt 0:00:00]} 28. c4 {[%emt 0:05:33] [#]} c6 {[%emt 0:00:00] Dodges Rd5} 29. bxc6 {[%emt 0:00:11] Threatens to win with Rd5.} Rxb3+ {[%emt 0:00:00]} 30. Kc2 {[%emt 0:00:07]} Rb6 {[%emt 0:00:00]} 31. c7 {[%emt 0:00:25]} Rc8 {[%emt 0:00:00]} (31... Bxc7 {simplifies} 32. Rxc5 Rb7 33. Rd5 a4) 32. Ra1 $132 {[%emt 0:00:25][%mdl 2048] White is not holding back} (32. Nxc5 $2 Rxc7 33. Nd3 Rxc4+ 34. Kd2 a4 $19) 32... Ra6 {[%emt 0:00:00]} 33. Ra4 {[%emt 0:05:01]} Rxc7 {[%emt 0:00:00]} 34. Rf1 {[%emt 0:00:15]} Re7 {[%emt 0:00:00]} 35. Re1 {[%emt 0:00:28]} Ra8 {[%emt 0:00:00]} 36. Kc3 {[%emt 0:00:30]} h5 {[%emt 0:00:00]} 37. Rea1 {[%emt 0:00:26]} Rxe4 {[%emt 0:00:00]} 38. Rxa5 {[%emt 0:00:07]} Rxa5 {[%emt 0:00:00]} 39. Rxa5 $17 {[%emt 0:00:01][%mdl 4096] Endgame KRB-KRN} Re2 {[%emt 0:00:00]} 40. Nxc5 {[%emt 0:00:41]} Rxh2 {[%emt 0:00:00] Black is more active.} 41. Ne4 {[%emt 0:01:35] [#]} Bxg3 {[%emt 0:00:00]} 42. Nxg3 {[%emt 0:00:13] KRN-KR} Rh3 {[%emt 0:00:00]} 43. Kd4 {[%emt 0:00:32]} Rxg3 $11 {[%emt 0:00:00] KR-KR} 44. c5 $2 {[%emt 0:00:46]} (44. Rxh5 $11 Rg2 45. Rb5) 44... Kf7 $17 {[%emt 0:00:00]} 45. c6 {[%emt 0:00:36][%cal Oc6c7] Hoping for c7!} Ke7 $1 {[%emt 0:00:00]} ({Weaker is} 45... Rg4+ 46. Kc5 Rg3 47. c7 $11) 46. Rxh5 {[%emt 0:00:33]} Kd6 {[%emt 0:00:27]} 47. Rc5 {[%emt 0:00:24] White wants to mate with c7.} Rg4+ {[%emt 0:00:40]} 48. Ke3 {[%emt 0:00:26] And now c7 would win.} Kc7 $1 {[%emt 0:00:04]} (48... Kxc5 $2 49. c7 Rg5 50. c8=Q+ (50. c8=B Re5+ 51. Kf4 g5+ 52. Kg4 Kd6 $19) 50... Kd5 51. Qd7+ Kc5 52. Ke4 $18) 49. Rc1 {[%emt 0:00:38]} (49. Kf3 Ra4 50. Rc1 g5 $19) 49... f5 {[%emt 0:00:45]} (49... Rg2 $142 50. Ra1 Kxc6) 50. Kf3 {[%emt 0:00:32]} g6 {[%emt 0:00:14]} 51. Rc2 {[%emt 0:00:30]} Rd4 {[%emt 0:00:32]} 52. Rg2 {[%emt 0:00:25]} Rd6 {[%emt 0:00:08]} ({Of course not} 52... Kxc6 $6 53. Rxg6+ Kd5 54. Ra6 $11) 53. Kf4 {[%emt 0:00:16]} Kxc6 {[%emt 0:00:30]} 54. Kg5 {[%emt 0:00:35]} Kd7 {[%emt 0:00:21] aiming for ...Rd4.} 55. Re2 {[%emt 0:00:15]} Re6 {[%emt 0:00:18]} 56. Rd2+ {[%emt 0:00:13]} Kc6 {[%emt 0:01:50]} 57. Rd1 {[%emt 0:01:03]} Kc5 {[%emt 0:00:06]} 58. Rc1+ {[%emt 0:00:38]} Kd5 {[%emt 0:00:33]} 59. Rd1+ {[%emt 0:00:05]} Kc4 {[%emt 0:00:05]} 60. Rd2 {[%emt 0:00:34]} Rc6 {[%emt 0:01:11]} 61. Rd1 {[%emt 0:00:22]} Kc5 {[%emt 0:00:17]} 62. Rd2 {[%emt 0:00:40]} Rd6 {[%emt 0:00:48]} 63. Re2 $2 {[%emt 0:00:25][%mdl 8192] [#]} (63. Rc2+ $17 {nothing else works.} Kd5 64. Rd2+ Kc6 65. Re2) 63... Kd5 $2 {[%emt 0:01:05]} (63... Kc4 $1 $19 {and Black stays clearly on top.} 64. Re1 Kc3) 64. Re1 {[%emt 0:00:27]} Ra6 {[%emt 0:01:20]} 65. Re2 {[%emt 0:00:58]} Kd4 {[%emt 0:00:17]} 66. Re8 $2 {[%emt 0:00:34][%mdl 8192]} (66. Kf4 $17 {prevents the worst.}) 66... Ra1 $19 {[%emt 0:01:17]} 67. Kxg6 {[%emt 0:00:19]} f4 {[%emt 0:00:01][%cal Bf5f4,Bf4f3,Bf3f2][%mdl 32] Black mates.} 68. Kg5 {[%emt 0:00:41]} f3 {[%emt 0:00:13]} 69. Rf8 {[%emt 0:00:26]} Ke3 {[%emt 0:00:12]} 70. Re8+ {[%emt 0:00:06]} Kf2 {[%emt 0:00:15]} 71. Kg4 {[%emt 0:00:54]} Kg2 {[%emt 0:00:13]} 72. Kf4 {[%emt 0:00:09]} f2 {[%emt 0:00:51]} 73. Rg8+ {[%emt 0:00:05] [#]} Kf1 $1 {[%emt 0:00:05]} 74. Re8 {[%emt 0:01:11]} Ra3 {[%emt 0:02:09]} 75. Rb8 {[%emt 0:00:36]} Kg2 {[%emt 0:00:23] Weighted Error Value: White=0.10 (very precise) /Black=0.06 (flawless)} 0-1